bitfinex/quotes_ETHUSD_20240922
["timestamp","ask_amount","ask_price","bid_price","bid_amount"]
[1727028068328,6.410523,2588.0,2587.9,0.0383082]
[1727028068530,3.86398,2588.0,2587.9,2.5314082]
[1727028070535,6.410523,2588.0,2587.9,2.5314082]
[1727028071057,6.410523,2588.0,2587.9,0.0383082]
[1727028072810,7.6680003,2588.0,2587.9,0.0383082]
[1727028073216,6.410523,2588.0,2587.9,0.0383082]
[1727028073814,6.960523,2588.0,2587.9,0.0383082]
[1727028074330,12.260923,2588.0,2587.9,0.0383082]
[1727028075562,12.260923,2588.0,2587.1,2.5314082]
[1727028075563,3.86491,2587.4,2587.1,2.5314082]
[1727028075713,7.72987,2587.4,2587.1,2.5314082]
[1727028075916,3.86491,2587.4,2587.1,2.5314082]
[1727028076549,7.72993,2587.4,2587.1,2.5314082]
[1727028076734,7.72987,2587.4,2587.1,2.5314082]
[1727028076941,3.86508,2587.3,2587.1,2.5314082]
[1727028077140,7.72991,2587.4,2587.1,2.5314082]
[1727028077346,3.86491,2587.4,2587.1,2.5314082]
[1727028079566,3.86518,2587.2,2587.1,2.5314082]
[1727028080668,3.86505,2587.3,2587.1,2.5314082]
[1727028081270,3.86518,2587.2,2587.1,2.5314082]
[1727028081563,3.86505,2587.3,2587.1,2.5314082]
[1727028082070,3.86477,2587.5,2587.1,2.5314082]
[1727028082241,3.86457,2587.7,2587.4,2.3898]
[1727028082438,3.86456,2587.7,2587.4,2.3898]
[1727028083233,7.7291,2587.7,2587.4,2.3898]
[1727028083429,3.86453,2587.7,2587.4,2.3898]
[1727028083970,3.86473,2587.5,2587.4,2.3898]
[1727028086795,3.86499,2587.4,2587.2,2.3898]
[1727028088046,3.86474,2587.5,2587.2,2.3898]
[1727028088251,3.86468,2587.6,2587.2,2.3898]
[1727028088651,7.72936,2587.6,2587.2,2.3898]
[1727028088848,3.86468,2587.6,2587.2,2.3898]
[1727028089453,3.86468,2587.6,2587.2,3.86515]
[1727028089680,3.86468,2587.6,2587.3,2.3898]
[1727028090290,6.410923,2587.8,2587.3,2.3898]
[1727028090982,3.86458,2587.6,2587.3,2.3898]
[1727028094774,6.410893,2587.8,2587.3,2.3898]
[1727028094775,3.86488,2587.4,2587.3,2.3898]
[1727028101300,7.72935,2587.6,2587.3,2.3898]
[1727028101601,3.86488,2587.4,2587.3,2.3898]
[1727028101896,3.86462,2587.6,2587.3,2.3898]
[1727028102100,6.410943,2587.8,2587.3,2.3898]
[1727028102101,3.8644,2587.8,2587.3,2.3898]
[1727028102326,3.8644,2587.8,2587.4,2.4256]
[1727028102327,7.72878,2587.8,2587.4,2.4256]
[1727028102603,7.72878,2587.8,2587.4,2.50288555]
[1727028103104,7.72878,2587.8,2587.4,2.4256]
[1727028103800,3.86438,2587.8,2587.4,2.4256]
[1727028104364,9.996543,2588.1,2587.6,6.29779]
[1727028104365,7.45,2588.1,2587.6,6.29779]
[1727028104681,3.86331,2588.5,2588.0,3.86398]
[1727028105014,3.86309,2588.6,2588.1,2.51056585]
[1727028105214,3.86309,2588.6,2588.2,0.07726327]
[1727028105509,3.86305,2588.7,2588.4,2.4333]
[1727028105712,3.86312,2588.6,2588.4,2.4333]
[1727028106116,2.546543,2588.8,2588.4,2.4333]
[1727028106117,3.86294,2588.8,2588.4,2.4333]
[1727028106266,2.546543,2589.0,2588.5,2.4333]
[1727028106267,3.86253,2589.0,2588.5,2.4333]
[1727028106611,3.86253,2589.0,2588.5,3.86323]
[1727028106810,3.86253,2589.0,2588.6,2.4333]
[1727028108098,7.72514,2589.0,2588.6,2.4333]
[1727028108272,6.409483,2588.7,2588.6,2.4333]
[1727028108506,6.409483,2588.7,2588.0,7.72784]
[1727028108507,6.409483,2588.7,2588.2,2.4333]
[1727028109308,6.409483,2588.7,2588.2,6.29697]
[1727028109513,3.8628,2588.8,2588.2,6.29697]
[1727028109718,7.72568,2588.8,2588.2,6.29697]
[1727028110069,3.86295,2588.7,2588.2,6.29697]
[1727028111918,3.8628,2588.8,2588.4,2.4333]
[1727028115902,3.86302,2588.7,2588.4,2.4333]
[1727028116096,3.8628,2588.8,2588.4,2.4333]
[1727028116513,7.72567,2588.8,2588.4,2.4333]
[1727028116787,3.86295,2588.7,2588.4,2.4333]
[1727028124323,3.86316,2588.6,2588.4,2.4333]
[1727028124549,3.86294,2588.7,2588.4,2.4333]
[1727028124722,7.726,2588.7,2588.4,2.4333]
[1727028125462,3.86309,2588.6,2588.4,2.4333]
[1727028125839,3.86324,2588.5,2588.4,2.4333]
[1727028126169,3.8634,2588.4,2588.1,2.2987]
[1727028126322,6.410073,2588.3,2587.8,2.2987]
[1727028126527,3.8637,2588.2,2587.8,2.2987]
[1727028127438,10.273713,2588.3,2587.8,2.2987]
[1727028127638,7.72717,2588.3,2587.8,2.2987]
[1727028128358,3.86353,2588.3,2587.8,6.1629]
[1727028128965,3.86353,2588.3,2587.9,3.86412]
[1727028130336,3.86353,2588.3,2587.8,2.2987]
[1727028131446,2.546543,2588.1,2587.8,2.2987]
[1727028131646,1.0273403,2588.3,2587.4,3.0]
[1727028131647,3.8645,2587.7,2587.4,2.2987]
[1727028131851,2.546543,2587.7,2587.4,2.2987]
[1727028132147,3.86458,2587.6,2587.2,2.2987]
[1727028132348,2.546543,2587.9,2587.4,6.16356]
[1727028132530,2.546543,2587.9,2587.4,2.2987]
[1727028132531,3.8642,2587.9,2587.4,2.2987]
[1727028132736,3.86444,2587.7,2587.4,2.2987]
[1727028132977,3.86428,2587.8,2587.4,2.2987]
[1727028133179,7.72867,2587.8,2587.4,2.2987]
[1727028133693,4.8918013,2587.8,2587.4,2.2487]
[1727028134180,8.7561913,2587.8,2587.4,2.2487]
[1727028134518,3.86443,2587.7,2587.4,2.2487]
[1727028134776,3.86428,2587.8,2587.4,2.2487]
[1727028135076,4.819143,2587.7,2587.1,3.9035382]
[1727028135240,3.86466,2587.6,2587.1,3.9035382]
[1727028136336,3.86479,2587.5,2587.1,0.0383082]
[1727028136536,3.86466,2587.6,2587.1,0.0383082]
[1727028136737,3.86466,2587.6,2587.2,2.2987]
[1727028139332,4.7331903,2587.5,2587.2,2.2987]
[1727028139538,3.86481,2587.5,2587.2,2.2987]
[1727028141985,3.86503,2587.3,2587.1,0.0383082]
[1727028142196,3.86518,2587.2,2587.1,0.0383082]
[1727028143183,10.276713,2587.3,2587.1,0.0383082]
[1727028143335,3.86518,2587.2,2587.1,0.0383082]
[1727028144268,1.0276713,2587.3,2587.1,0.0383082]
[1727028144485,3.86485,2587.5,2587.2,2.3413]
[1727028145986,3.86503,2587.3,2587.1,0.0383082]
[1727028146549,3.86518,2587.2,2587.1,0.0383082]
[1727028150445,4.41518,2587.2,2587.1,0.0383082]
[1727028150692,6.73148,2587.2,2587.1,0.0383082]
[1727028151861,9.278023,2587.2,2587.1,0.0383082]
[1727028152189,9.278023,2587.2,2586.4,0.0383082]
[1727028152190,6.18252,2586.5,2586.4,0.0383082]
[1727028152496,8.729063,2586.5,2586.4,0.0383082]
[1727028152965,9.279063,2586.5,2586.4,0.0383082]
[1727028154692,6.412763,2586.5,2586.4,0.0383082]
[1727028155002,3.86622,2586.5,2586.4,0.0383082]
[1727028155366,6.412763,2586.5,2586.4,0.0383082]
[1727028155709,3.86609,2586.6,2586.4,0.0383082]
[1727028156506,7.73227,2586.6,2586.4,0.0383082]
[1727028156852,3.86622,2586.5,2586.4,0.0383082]
[1727028157130,6.412763,2586.5,2586.4,0.0383082]
[1727028157581,3.86622,2586.5,2586.4,0.0383082]
[1727028158702,6.412763,2586.5,2586.4,0.0383082]
[1727028159893,3.86622,2586.5,2586.4,0.0383082]
[1727028161499,3.86588,2586.8,2586.4,0.0383082]
[1727028161653,3.86588,2586.8,2586.5,2.4512]
[1727028162257,1.6076081,2587.2,2586.5,2.4512]
[1727028162258,3.86529,2587.2,2586.5,2.4512]
[1727028162595,3.86538,2587.1,2586.7,2.4512]
[1727028162759,6.411923,2587.1,2586.7,2.4512]
[1727028163273,3.86559,2587.0,2586.5,6.31739]
[1727028163598,6.412183,2586.9,2586.5,2.4512]
[1727028164168,6.412553,2586.7,2586.4,0.0383082]
[1727028164584,6.412253,2586.9,2586.4,0.0383082]
[1727028164775,3.86578,2586.8,2586.4,0.0383082]
[1727028165374,6.411873,2587.1,2586.5,2.4592]
[1727028165689,3.86562,2587.0,2586.5,2.4592]
[1727028165999,6.412213,2586.9,2586.5,2.4592]
[1727028171615,2.546543,2586.9,2586.5,2.4592]
[1727028172014,3.86555,2587.0,2586.5,6.32541]
[1727028172310,2.546543,2586.8,2586.4,0.0383082]
[1727028172462,2.546543,2586.8,2586.4,2.4975082]
[1727028172463,6.412363,2586.8,2586.4,2.4975082]
[1727028172663,2.3724,2587.0,2586.4,2.4975082]
[1727028172664,3.86577,2586.9,2586.4,2.4975082]
[1727028173177,3.86577,2586.9,2586.4,6.3637982]
[1727028173386,3.8658,2586.8,2586.4,2.4975082]
[1727028174098,6.412313,2586.9,2586.4,2.4975082]
[1727028174099,10.278033,2586.9,2586.4,6.3638682]
[1727028174277,3.86572,2586.9,2586.4,6.3638682]
[1727028174892,6.411873,2587.1,2586.6,6.32527]
[1727028174893,3.86533,2587.1,2586.6,6.32527]
[1727028176231,3.86514,2587.3,2586.7,2.4592]
[1727028176525,11.31484,2587.5,2586.9,2.4592]
[1727028177019,11.31484,2587.5,2586.9,6.32475]
[1727028177175,11.31484,2587.5,2586.9,2.4592]
[1727028177376,3.86497,2587.4,2586.9,2.4592]
[1727028177976,6.411513,2587.4,2586.9,2.4592]
[1727028178423,6.411813,2587.2,2586.9,2.4592]
[1727028179615,10.277123,2587.2,2586.9,2.4592]
[1727028179971,6.411813,2587.2,2586.9,2.4592]
[1727028180317,3.86527,2587.2,2586.9,2.4592]
[1727028180511,7.45,2587.5,2586.9,2.4592]
[1727028180512,11.31473,2587.5,2586.9,2.4592]
[1727028180729,3.86459,2587.6,2587.0,3.86538]
[1727028180730,7.72927,2587.6,2587.0,3.86538]
[1727028180931,7.72927,2587.6,2587.1,2.4089]
[1727028181216,7.45,2587.9,2586.4,0.0383082]
[1727028181217,2.4017,2587.0,2586.4,0.0383082]
[1727028181379,6.412243,2586.9,2586.4,0.0383082]
[1727028181576,6.412243,2586.9,2586.4,3.9045882]
[1727028182079,3.86586,2586.8,2586.4,0.0383082]
[1727028182505,3.86593,2586.7,2586.4,0.0383082]
[1727028183083,3.86616,2586.6,2586.4,0.0383082]
[1727028184938,3.86622,2586.5,2586.4,0.0383082]
[1727028188996,6.412763,2586.5,2586.4,0.0383082]
[1727028192636,3.86622,2586.5,2586.4,0.0383082]
[1727028192871,6.412763,2586.5,2586.4,0.0383082]
[1727028193167,7.78360703,2586.5,2586.4,0.0383082]
[1727028198337,6.412763,2586.5,2586.4,0.0383082]
[1727028199874,3.86622,2586.5,2586.4,0.0383082]
[1727028200047,7.73237,2586.6,2586.4,0.0383082]
[1727028200250,3.86622,2586.5,2586.4,0.0383082]
[1727028201660,6.412763,2586.5,2586.4,0.0383082]
[1727028201980,13.41533703,2586.5,2586.4,0.0383082]
[1727028216009,10.54343703,2586.5,2586.4,0.0383082]
[1727028219462,13.59133703,2586.5,2586.4,0.0383082]
[1727028224574,9.91472,2586.1,2586.0,0.99904964]
[1727028224874,13.839404,2586.1,2586.0,0.99904964]
[1727028226243,11.341504,2586.1,2586.0,0.99904964]
[1727028228092,9.963363,2586.1,2586.0,0.99904964]
[1727028234474,8.5950826,2586.1,2586.0,0.99904964]
[1727028235914,8.5950826,2586.1,2586.0,3.27504964]
[1727028236407,3.86653,2586.3,2586.1,2.276]
[1727028236712,1.1782626,2586.2,2586.1,2.276]
[1727028238308,3.86653,2586.3,2586.1,2.276]
[1727028238309,10.28502539,2586.3,2586.1,2.276]
[1727028238523,6.41841539,2586.3,2586.1,2.276]
[1727028240087,3.86653,2586.3,2586.1,2.276]
[1727028240804,7.73315,2586.3,2586.1,2.276]
[1727028241013,10.28503539,2586.3,2586.1,2.276]
[1727028241337,3.86667,2586.2,2586.1,2.276]
[1727028241667,3.86667,2586.2,2586.0,0.99904964]
[1727028241872,6.41870539,2586.1,2586.0,0.99904964]
[1727028244013,6.41870539,2586.1,2586.0,3.39194964]
[1727028246901,3.86682,2586.1,2586.0,3.39194964]
[1727028248492,3.86667,2586.2,2586.0,3.39194964]
[1727028249328,7.73349,2586.2,2586.0,3.39194964]
[1727028249677,3.86667,2586.2,2586.0,3.39194964]
[1727028250075,7.73348,2586.2,2586.0,3.39194964]
[1727028250304,3.86682,2586.1,2586.0,3.39194964]
[1727028258449,5.04470344,2586.1,2586.0,3.39194964]
[1727028258651,5.04470344,2586.1,2586.0,0.99904964]
[1727028260663,3.86682,2586.1,2586.0,0.99904964]
[1727028261870,3.81682,2586.1,2586.0,0.99904964]
[1727028265772,5.04450344,2586.3,2586.0,0.99904964]
[1727028265983,3.86639,2586.4,2586.1,2.2816]
[1727028266483,3.86624,2586.5,2586.1,2.2816]
[1727028267263,3.86647,2586.4,2586.1,2.2816]
[1727028268945,7.73295,2586.4,2586.1,2.2816]
[1727028269270,3.86667,2586.2,2586.0,0.99904964]
[1727028269575,5.04470344,2586.1,2586.0,0.99904964]
[1727028273698,3.86658,2586.3,2586.0,0.99904964]
[1727028273899,3.86667,2586.2,2586.0,0.99904964]
[1727028275970,5.04455344,2586.2,2586.0,0.99904964]
[1727028276478,3.86654,2586.3,2586.0,0.99904964]
[1727028277741,1.17788344,2586.2,2586.0,0.99904964]
[1727028278959,3.86682,2586.1,2586.0,0.99904964]
[1727028292315,3.86682,2586.1,2586.0,3.30444964]
[1727028293995,3.86682,2586.1,2586.0,0.99904964]
[1727028301895,5.04465344,2586.2,2586.0,0.99904964]
[1727028303920,3.86682,2586.1,2586.0,0.99904964]
[1727028304083,6.17762,2586.1,2586.0,0.99904964]
[1727028305213,6.72762,2586.1,2586.0,0.99904964]
[1727028306065,7.90550344,2586.1,2586.0,0.99904964]
[1727028306262,7.35550344,2586.1,2586.0,0.99904964]
[1727028306461,9.07817732,2586.1,2586.0,0.99904964]
[1727028309888,3.86742,2585.7,2585.6,0.0383082]
[1727028310068,7.90610344,2585.7,2585.6,0.0383082]
[1727028310379,9.08344278,2585.7,2585.6,0.0383082]
[1727028310697,8.53344278,2585.7,2585.6,0.0383082]
[1727028314072,9.08344278,2585.7,2585.6,0.0383082]
[1727028317546,8.53344278,2585.7,2585.6,0.0383082]
[1727028318038,9.08344278,2585.7,2585.6,0.0383082]
[1727028323551,6.77264278,2585.7,2585.6,0.0383082]
[1727028323714,3.86726,2585.9,2585.6,0.0383082]
[1727028323917,3.42897388,2586.1,2585.6,0.0383082]
[1727028323918,5.04485344,2586.0,2585.7,2.2511]
[1727028324257,3.86683,2586.1,2585.7,2.2511]
[1727028324627,1.17788344,2586.0,2585.7,2.2511]
[1727028324840,5.04492344,2586.0,2585.7,2.2511]
[1727028325414,1.17788344,2585.8,2585.7,2.2511]
[1727028328853,1.17788344,2585.8,2585.6,0.0383082]
[1727028328854,3.86742,2585.7,2585.6,0.0383082]
[1727028329071,7.01497734,2585.7,2585.6,0.0383082]
[1727028330160,4.75867734,2585.7,2585.6,0.0383082]
[1727028330470,3.86742,2585.7,2585.6,0.0383082]
[1727028332224,3.97025004,2585.7,2585.6,0.0383082]
[1727028342604,0.10283004,2585.7,2585.6,2.4575082]
[1727028342799,5.04515344,2585.8,2585.6,2.4575082]
[1727028343101,0.10106136,2585.7,2585.6,2.4575082]
[1727028343260,0.10106136,2585.7,2585.6,2.70325902]
[1727028343466,3.86714,2585.9,2585.6,2.70325902]
[1727028343665,0.10106136,2585.7,2585.6,2.70325902]
[1727028343899,5.04494344,2586.0,2585.6,2.70325902]
[1727028344062,0.10106136,2585.7,2585.6,2.4575082]
[1727028344266,3.8672,2585.9,2585.6,2.4575082]
[1727028344770,0.10107379,2585.8,2585.6,2.4575082]
[1727028347274,5.14624723,2585.8,2585.6,2.4575082]
[1727028349002,1.27895723,2585.8,2585.6,2.4575082]
[1727028350989,5.14623723,2585.8,2585.6,2.4575082]
[1727028351185,5.14623723,2585.8,2585.6,0.0383082]
[1727028351515,9.01359723,2585.8,2585.6,0.0383082]
[1727028351816,3.86742,2585.7,2585.6,0.0383082]
[1727028352013,3.96861394,2585.7,2585.6,0.0383082]
[1727028352169,7.21709168,2585.7,2585.6,0.0383082]
[1727028352377,7.76709168,2585.7,2585.6,0.0383082]
[1727028352669,10.76709168,2585.7,2585.6,0.0383082]
[1727028360895,6.04787512,2585.7,2585.6,0.0383082]
[1727028363394,5.14649738,2585.7,2585.6,0.0383082]
[1727028364726,0.10119394,2585.7,2585.6,0.0383082]
[1727028365031,1.17788344,2585.7,2585.6,0.0383082]
[1727028365232,1.27884953,2585.7,2585.6,0.0383082]
[1727028365634,5.14626953,2585.7,2585.6,0.0383082]
[1727028374310,0.10096609,2585.7,2585.6,2.3906082]
[1727028374514,0.10096609,2585.7,2585.6,6.2581782]
[1727028374717,3.86709,2586.0,2585.7,2.3523]
[1727028375840,8.91202344,2586.0,2585.7,2.3523]
[1727028376051,3.86712,2585.9,2585.7,2.3523]
[1727028376231,8.91199344,2586.0,2585.7,2.3523]
[1727028377240,8.91200344,2586.0,2585.7,2.3523]
[1727028377445,5.04493344,2586.0,2585.7,2.3523]
[1727028380513,8.91198344,2586.0,2585.7,2.3523]
[1727028380837,5.04493344,2586.0,2585.7,2.3523]
[1727028385455,3.86742,2585.7,2585.6,0.0383082]
[1727028385764,6.25762,2585.7,2585.6,0.0383082]
[1727028386252,6.35540729,2585.7,2585.6,0.0383082]
[1727028386463,7.49547236,2585.7,2585.6,0.0383082]
[1727028389066,5.10527236,2585.7,2585.6,0.0383082]
[1727028393254,0.09778729,2585.7,2585.6,2.4813082]
[1727028393468,5.04524344,2585.8,2585.6,2.4813082]
[1727028393782,3.96496701,2585.7,2585.6,2.4813082]
[1727028393958,3.96496701,2585.7,2585.6,0.0383082]
[1727028398454,0.09754701,2585.7,2585.6,0.0383082]
[1727028398653,3.86742,2585.7,2585.6,0.0383082]
[1727028398960,3.96407004,2585.7,2585.6,0.0383082]
[1727028399742,5.8900824,2585.7,2585.6,0.0383082]
[1727028406564,8.7371824,2585.7,2585.6,0.0383082]
[1727028418915,3.96407004,2585.7,2585.6,0.0383082]
[1727028423526,6.85467004,2585.7,2585.6,0.0383082]
[1727028437197,8.03255348,2585.7,2585.6,0.0383082]
[1727028438659,0.09665004,2585.7,2585.6,2.2970082]
[1727028438902,3.86736,2585.8,2585.6,2.52670902]
[1727028439125,0.09050617,2585.7,2585.6,2.52670902]
[1727028439560,3.86686,2586.1,2585.6,2.60405257]
[1727028439762,0.08750617,2585.7,2585.6,2.60405247]
[1727028440075,1.17788344,2586.3,2585.8,2.4576]
[1727028440267,5.04500344,2585.9,2585.8,2.4576]
[1727028440883,5.12776435,2585.9,2585.8,2.4576]
[1727028442994,3.86742,2585.7,2585.6,2.4959082]
[1727028443167,5.04530344,2585.7,2585.6,2.4959082]
[1727028443666,5.12822225,2585.7,2585.6,2.4959082]
[1727028448982,0.08291881,2585.7,2585.6,2.4959082]
[1727028449188,0.08291881,2585.7,2585.6,2.74549902]
[1727028449383,3.86742,2585.7,2585.6,2.74549902]
[1727028449587,3.95028064,2585.7,2585.6,2.4959082]
[1727028451211,3.95028064,2585.7,2585.6,0.0383082]
[1727028453578,3.95028064,2585.7,2585.6,2.3282082]
[1727028455418,3.95028064,2585.7,2585.6,0.0383082]
[1727028455588,4.50028064,2585.7,2585.6,0.0383082]
[1727028455791,5.69946405,2585.7,2585.6,0.0383082]
[1727028459493,8.10896405,2585.7,2585.6,0.0383082]
[1727028460391,11.10896405,2585.7,2585.6,0.0383082]
[1727028462443,13.662581,2585.7,2585.6,0.0383082]
[1727028482553,12.28766701,2585.7,2585.6,0.0383082]
[1727028484019,9.87816701,2585.7,2585.6,0.0383082]
[1727028485135,4.50028064,2585.7,2585.6,0.0383082]
[1727028485342,5.6789836,2585.7,2585.6,0.0383082]
[1727028497980,10.9699836,2585.7,2585.6,0.0383082]
[1727028498988,14.32767974,2585.7,2585.6,0.0383082]
[1727028500597,4.41847,2585.0,2584.9,2.4784]
[1727028500886,5.59717296,2585.0,2584.9,2.4784]
[1727028501092,5.67139919,2585.0,2584.9,2.4784]
[1727028502063,4.41862,2584.9,2584.8,0.0383082]
[1727028502774,4.49284623,2584.9,2584.8,0.0383082]
[1727028504190,3.94284623,2584.9,2584.8,2.3423082]
[1727028509540,5.39184815,2584.9,2584.8,0.0383082]
[1727028509986,10.71444815,2584.9,2584.8,0.0383082]
[1727028513460,8.39184815,2584.9,2584.8,0.0383082]
[1727028517388,10.71444815,2584.9,2584.8,0.0383082]
[1727028527498,8.39184815,2584.9,2584.8,0.0383082]
[1727028527710,8.67154919,2584.9,2584.8,0.0383082]
[1727028528408,11.12584919,2584.9,2584.8,0.0383082]
[1727028539470,11.12584919,2584.9,2584.0,2.4807082]
[1727028539471,3.86981,2584.1,2584.0,2.4807082]
[1727028539711,3.86981,2584.1,2584.0,0.0383082]
[1727028539712,5.59851296,2584.1,2584.0,0.0383082]
[1727028539922,5.66766739,2584.1,2584.0,0.0383082]
[1727028540610,7.00835413,2584.1,2584.0,0.0383082]
[1727028540985,12.44695413,2584.1,2584.0,0.0383082]
[1727028541488,12.44695413,2584.1,2583.2,0.0383082]
[1727028541489,3.87071,2583.5,2583.4,2.4424]
[1727028541806,5.66835472,2583.5,2583.4,2.4424]
[1727028542719,3.93965176,2583.5,2583.4,2.4424]
[1727028542876,3.93965176,2583.5,2583.4,2.69047082]
[1727028544273,0.06894176,2583.5,2583.4,2.69047082]
[1727028544473,3.87032,2583.8,2583.4,2.69047082]
[1727028544719,0.06631554,2583.5,2583.4,2.69047082]
[1727028544877,3.87032,2583.8,2583.4,2.69047082]
[1727028545073,3.87032,2583.8,2583.5,0.26904708]
[1727028545405,3.87032,2583.8,2583.2,3.9093882]
[1727028545406,3.87032,2583.8,2583.3,2.4424]
[1727028546085,7.74068,2583.8,2583.3,2.4424]
[1727028546291,3.87032,2583.8,2583.3,2.4424]
[1727028546919,3.87042,2583.7,2583.3,2.4424]
[1727028547525,3.87032,2583.8,2583.3,2.4424]
[1727028548214,3.8706,2583.6,2583.3,2.4424]
[1727028549407,5.04915296,2583.7,2583.3,2.4424]
[1727028549720,3.87032,2583.8,2583.3,6.31341]
[1727028549918,3.87032,2583.8,2583.4,2.4424]
[1727028550780,1.17870296,2583.7,2583.4,2.4424]
[1727028551090,3.87063,2583.6,2583.4,2.4424]
[1727028551292,3.93711738,2583.6,2583.4,2.4424]
[1727028553493,3.93710738,2583.6,2583.4,2.4424]
[1727028554296,7.80777738,2583.6,2583.4,2.4424]
[1727028555122,3.93710738,2583.6,2583.4,2.4424]
[1727028555625,1.17870296,2583.5,2583.4,2.4424]
[1727028555826,5.11582028,2583.5,2583.4,2.4424]
[1727028556437,5.66582028,2583.5,2583.2,0.0383082]
[1727028556752,5.04971296,2583.3,2583.2,2.4807082]
[1727028557233,5.11605351,2583.3,2583.2,2.4807082]
[1727028557393,0.06634055,2583.3,2583.2,2.4807082]
[1727028557587,0.06634055,2583.3,2583.2,2.72877902]
[1727028557798,3.87086,2583.4,2583.2,2.72877902]
[1727028558012,5.11592417,2583.3,2583.2,2.4807082]
[1727028559826,0.06621121,2583.3,2583.2,2.4807082]
[1727028560399,3.93722121,2583.3,2583.2,2.4807082]
[1727028560697,1.24491417,2583.3,2583.2,2.4807082]
[1727028562133,5.11592417,2583.3,2583.2,2.4807082]
[1727028562446,0.06621121,2583.3,2583.2,2.4807082]
[1727028562612,3.8708,2583.5,2583.2,2.4807082]
[1727028562803,0.06397118,2583.3,2583.2,2.4807082]
[1727028563042,3.8708,2583.5,2583.2,2.4807082]
[1727028563229,0.06397118,2583.3,2583.2,2.4807082]
[1727028563434,3.8708,2583.5,2583.2,2.4807082]
[1727028563739,0.06397118,2583.3,2583.2,2.4807082]
[1727028563940,3.8708,2583.5,2583.2,2.4807082]
[1727028564096,0.06397118,2583.3,2583.2,2.4807082]
[1727028564300,3.8709,2583.4,2583.2,2.4807082]
[1727028564537,0.06397118,2583.3,2583.2,2.4807082]
[1727028565137,3.8708,2583.5,2583.2,2.4807082]
[1727028565339,0.06397118,2583.3,2583.2,2.4807082]
[1727028565524,7.74162,2583.5,2583.2,2.4807082]
[1727028565701,0.06397118,2583.3,2583.2,2.4807082]
[1727028565898,7.74161,2583.5,2583.2,2.4807082]
[1727028566101,0.06396701,2583.3,2583.2,2.4807082]
[1727028566337,5.04963296,2583.4,2583.2,2.4807082]
[1727028566550,3.93497701,2583.3,2583.2,2.4807082]
[1727028568727,3.93497701,2583.3,2583.2,0.0383082]
[1727028573423,5.07057401,2583.3,2583.2,0.0383082]
[1727028574820,3.93497701,2583.3,2583.2,0.0383082]
[1727028575163,3.93497701,2583.3,2583.2,2.4951082]
[1727028575164,0.06396701,2583.3,2583.2,2.4951082]
[1727028575464,5.11367997,2583.3,2583.2,0.0383082]
[1727028577566,1.24266997,2583.3,2583.2,0.0383082]
[1727028577769,1.24266997,2583.3,2583.2,2.4951082]
[1727028578620,0.06396701,2583.3,2583.2,2.4951082]
[1727028578824,3.87067,2583.6,2583.2,2.4951082]
[1727028579129,5.11101788,2583.5,2583.2,2.4951082]
[1727028579530,1.24026788,2583.5,2583.2,2.4951082]
[1727028583082,0.06156492,2583.5,2583.3,2.4717]
[1727028583234,5.04912296,2583.7,2583.3,2.4717]
[1727028583571,0.06053838,2583.6,2583.3,2.4717]
[1727028583777,0.06053838,2583.6,2583.3,6.34268]
[1727028583924,0.06053838,2583.6,2583.4,2.4717]
[1727028584130,3.87028,2583.8,2583.4,2.4717]
[1727028584389,0.06053838,2583.5,2583.4,2.4717]
[1727028584587,7.74064,2583.8,2583.4,2.4717]
[1727028584790,0.06053838,2583.5,2583.4,2.4717]
[1727028584952,7.74064,2583.8,2583.4,2.4717]
[1727028585151,0.06053838,2583.5,2583.4,2.4717]
[1727028585354,7.74064,2583.8,2583.4,2.4717]
[1727028585627,0.06053838,2583.5,2583.4,2.4717]
[1727028585747,7.74064,2583.8,2583.4,2.4717]
[1727028586296,0.06053838,2583.7,2583.4,2.4717]
[1727028586462,3.87028,2583.8,2583.4,2.4717]
[1727028586790,0.05866361,2583.6,2583.5,6.34239]
[1727028586963,7.74016,2584.0,2583.5,6.34239]
[1727028587163,0.05866778,2583.6,2583.5,6.34239]
[1727028587367,3.87013,2583.9,2583.5,6.34239]
[1727028587792,0.05866778,2583.8,2583.5,6.34239]
[1727028588114,0.05866778,2583.8,2583.7,6.34211]
[1727028588254,2.2651,2584.5,2583.7,3.87041]
[1727028588255,3.86967,2584.2,2583.7,3.87041]
[1727028588458,3.86967,2584.2,2583.8,6.34196]
[1727028589245,5.04823296,2584.3,2583.8,2.4717]
[1727028589449,8.91787296,2584.3,2583.8,2.4717]
[1727028589652,3.86981,2584.1,2583.8,2.4717]
[1727028591658,3.86955,2584.3,2583.8,2.4717]
[1727028592010,3.86969,2584.2,2583.8,2.4717]
[1727028592163,3.86983,2584.1,2583.8,2.4717]
[1727028594790,7.73976,2584.1,2583.8,2.4717]
[1727028595230,1.17870296,2584.0,2583.5,2.4717]
[1727028595388,5.04911296,2583.8,2583.5,2.4717]
[1727028595592,3.87041,2583.7,2583.5,2.4717]
[1727028596289,0.0565539,2583.6,2583.5,2.4717]
[1727028601095,0.0565539,2583.6,2583.3,2.2534]
[1727028601293,3.9272039,2583.6,2583.3,2.2534]
[1727028601545,3.87101,2583.3,2583.2,0.0383082]
[1727028601900,0.05627439,2583.3,2583.2,0.0383082]
[1727028602536,3.92728439,2583.3,2583.2,0.0383082]
[1727028603098,6.31928439,2583.3,2583.2,0.0383082]
[1727028603294,3.92728439,2583.3,2583.2,0.0383082]
[1727028608018,0.05627439,2583.3,2583.2,0.0383082]
[1727028608413,7.74135,2583.6,2583.2,0.0383082]
[1727028608656,3.87083,2583.5,2583.2,0.0383082]
[1727028608862,0.05599059,2583.4,2583.2,0.0383082]
[1727028609360,3.92688059,2583.4,2583.2,0.0383082]
[1727028610945,3.87101,2583.3,2583.2,0.0383082]
[1727028611461,3.92700059,2583.3,2583.2,0.0383082]
[1727028613535,3.84815359,2583.3,2583.2,0.0383082]
[1727028616055,0.05599059,2583.3,2583.2,0.0383082]
[1727028616262,3.92700059,2583.3,2583.2,0.0383082]
[1727028618660,5.10570355,2583.3,2583.2,0.0383082]
[1727028619468,3.92700059,2583.3,2583.2,0.0383082]
[1727028619680,0.05599059,2583.3,2583.2,0.0383082]
[1727028620772,3.92700059,2583.3,2583.2,0.0383082]
[1727028621873,6.23801291,2583.3,2583.2,0.0383082]
[1727028622981,8.58451291,2583.3,2583.2,0.0383082]
[1727028629135,9.13451291,2583.3,2583.2,0.0383082]